fUST/lending_fUST_20260527
["ID","MTS","AMOUNT","RATE_DAILY","PERIOD"]
[423131682,1779874245000,-5000.0,0.00011784,2]
[423131677,1779874245000,-823.57,0.00011777,2]
[423131680,1779874245000,-859.77,0.00011778,2]
[423131675,1779874245000,-531.56,0.00011777,2]
[423131676,1779874245000,-1241.38,0.00011777,2]
[423131678,1779874245000,-1089.55,0.00011777,2]
[423131667,1779874245000,-500.0,0.00011776,2]
[423131652,1779874245000,-1089.55,0.00011503,2]
[423131658,1779874245000,-161.316583,0.00011645,2]
[423131645,1779874245000,-500.0,0.00011503,2]
[423131620,1779874245000,-823.57,0.00011229,2]
[423131614,1779874245000,-500.0,0.00011229,2]
[423131615,1779874245000,-500.0,0.00011229,2]
[423131618,1779874245000,-500.0,0.00011229,2]
[423131624,1779874245000,-458.00756623,0.00011249,2]
[423131630,1779874245000,-152.0,0.00011379,7]
[423131623,1779874245000,-859.77,0.0001123,2]
[423131632,1779874245000,-152.0,0.00011382,7]
[423131627,1779874245000,-4470.0,0.00011376,2]
[423131633,1779874245000,-220.093104,0.00011429,2]
[423131642,1779874245000,-500.0,0.00011502,2]
[423131681,1779874245000,-5000.0,0.00011784,2]
[423131628,1779874245000,-154.0,0.00011376,2]
[423131635,1779874245000,-1338.01,0.00011502,2]
[423131634,1779874245000,-413.3516908,0.00011443,2]
[423131629,1779874245000,-152.0,0.00011379,7]
[423131631,1779874245000,-152.0,0.00011382,7]
[423131646,1779874245000,-500.0,0.00011503,2]
[423131644,1779874245000,-500.0,0.00011503,2]
[423131626,1779874245000,-156.0,0.00011376,2]
[423131649,1779874245000,-500.0,0.00011503,2]
[423131643,1779874245000,-500.0,0.00011502,2]
[423131641,1779874245000,-500.0,0.00011502,2]
[423131648,1779874245000,-500.0,0.00011503,2]
[423131640,1779874245000,-750.96,0.00011502,2]
[423131647,1779874245000,-500.0,0.00011503,2]
[423131636,1779874245000,-500.0,0.00011502,2]
[423131639,1779874245000,-1127.87,0.00011502,2]
[423131637,1779874245000,-620.22,0.00011502,2]
[423131625,1779874245000,-500.0,0.00011342,2]
[423131638,1779874245000,-500.0,0.00011502,2]
[423131686,1779874246000,-51827.25207485,0.000119,2]
[423131687,1779874246000,-151.0,0.000119,2]
[423131685,1779874246000,-5000.0,0.00011784,2]
[423131684,1779874246000,-5000.0,0.00011784,2]
[423131683,1779874246000,-5000.0,0.00011784,2]
[423131689,1779874246000,-13915.2295809,0.000119,2]
[423131690,1779874246000,-1157.8378643,0.00011996,2]
[423131688,1779874246000,-151.0,0.000119,2]
[423131695,1779874246000,-239082.28617616,0.00012,2]
[423131694,1779874246000,-6459.17410858,0.00012,2]
[423131692,1779874246000,-837103.67040897,0.00012,2]
[423131691,1779874246000,-4665.6620959,0.00011996,2]
[423131703,1779874246000,-371.37677467,0.00010133,2]
[423131699,1779874246000,-500.0,9.585e-05,2]
[423131700,1779874246000,-500.0,9.859e-05,2]
[423131702,1779874246000,-418.64521452,0.00010132,2]
[423131701,1779874246000,-330.26478548,0.00010132,2]
[423131704,1779874246000,-128.62322533,0.00010133,2]
[423131705,1779874246000,-310.24699036,0.00010406,2]
[423131693,1779874246000,-67240.40703118,0.00012,2]
[423131710,1779874247000,-500.0,0.00010681,2]
[423131711,1779874247000,-152.0,0.00010945,2]
[423131709,1779874247000,-748.91,0.0001068,2]
[423131708,1779874247000,-500.0,0.00010407,2]
[423131706,1779874247000,-392.91753287,0.00010406,2]
[423131712,1779874247000,-359.6890088,0.00010954,2]
[423131707,1779874247000,-45.74547677,0.00010406,2]
[423131715,1779874292000,-500.0,8.488e-05,2]
[423131716,1779874309000,-500.0,8.487e-05,2]
[423132004,1779875181000,-151.0,7.446e-05,10]
[423132059,1779875432000,-500.0,8.387e-05,2]
[423132061,1779875432000,-603.85599494,8.387e-05,2]
[423132048,1779875432000,-300.0,7.445e-05,2]
[423132051,1779875432000,-201.8852755,7.476e-05,2]
[423132045,1779875432000,-1913.49388028,7.01e-05,2]
[423132047,1779875432000,-315.92693422,7.189e-05,2]
[423132046,1779875432000,-3385.97370673,7.081e-05,2]
[423132044,1779875432000,-3086.50611972,7.01e-05,2]
[423132063,1779875432000,-500.0,8.387e-05,2]
[423132050,1779875432000,-3023.05399197,7.446e-05,10]
[423132056,1779875432000,-500.0,8.387e-05,2]
[423132049,1779875432000,-486.23243165,7.445e-05,2]
[423132054,1779875432000,-192.07690502,8.387e-05,2]
[423132065,1779875432000,-500.0,8.387e-05,2]
[423132067,1779875432000,-500.0,8.387e-05,2]
[423132068,1779875432000,-500.0,8.387e-05,2]
[423132069,1779875432000,-500.0,8.387e-05,2]
[423132075,1779875432000,-500.0,8.387e-05,2]
[423132076,1779875432000,-97.48433659,8.387e-05,2]
[423132070,1779875432000,-500.0,8.387e-05,2]
[423132071,1779875432000,-500.0,8.387e-05,2]
[423132074,1779875432000,-500.0,8.387e-05,2]
[423132072,1779875432000,-500.0,8.387e-05,2]
[423132073,1779875432000,-353.76,8.387e-05,2]
[423132052,1779875432000,-166.7546267,7.597e-05,2]
[423132083,1779875438000,-402.51566341,8.387e-05,2]
[423132084,1779875438000,-500.0,8.387e-05,2]
[423132087,1779875438000,-17833.88179295,8.388e-05,2]
[423132085,1779875438000,-500.0,8.387e-05,2]
[423132086,1779875438000,-3895.51411718,8.388e-05,2]
[423132093,1779875441000,-1715.96651473,8.388e-05,2]
[423132120,1779875444000,-233.60797968,8.487e-05,2]
[423132137,1779875444000,-500.0,8.487e-05,2]
[423132125,1779875444000,-180.55341535,8.487e-05,2]
[423132129,1779875444000,-500.0,8.487e-05,2]
[423132126,1779875444000,-500.0,8.487e-05,2]
[423132123,1779875444000,-500.0,8.487e-05,2]
[423132121,1779875444000,-500.0,8.487e-05,2]
[423132127,1779875444000,-500.0,8.487e-05,2]
[423132124,1779875444000,-515.81,8.487e-05,2]
[423132119,1779875444000,-500.0,8.487e-05,2]
[423132118,1779875444000,-500.0,8.487e-05,2]
[423132122,1779875444000,-500.0,8.487e-05,2]
[423132112,1779875444000,-1237.85,8.486e-05,2]
[423132117,1779875444000,-500.0,8.487e-05,2]
[423132115,1779875444000,-500.0,8.486e-05,2]
[423132113,1779875444000,-161.52395361,8.486e-05,2]
[423132106,1779875444000,-500.0,8.486e-05,2]
[423132111,1779875444000,-500.0,8.486e-05,2]
[423132108,1779875444000,-500.0,8.486e-05,2]
[423132114,1779875444000,-500.0,8.486e-05,2]
[423132110,1779875444000,-568.97,8.486e-05,2]
[423132109,1779875444000,-380.67,8.486e-05,2]
[423132107,1779875444000,-397.35379083,8.486e-05,2]
[423132105,1779875444000,-5366.69847087,8.388e-05,2]
[423132116,1779875444000,-500.0,8.487e-05,2]
[423132131,1779875444000,-25.20539165,8.487e-05,2]
[423132132,1779875444000,-500.0,8.487e-05,2]
[423132133,1779875444000,-1544.79460835,8.487e-05,2]
[423132128,1779875444000,-500.0,8.487e-05,2]
[423132155,1779875444000,-355.92412146,8.487e-05,2]
[423132159,1779875444000,-512.78283429,8.487e-05,2]
[423132153,1779875444000,-669.01,8.487e-05,2]
[423132154,1779875444000,-500.0,8.487e-05,2]
[423132152,1779875444000,-500.0,8.487e-05,2]
[423132151,1779875444000,-500.0,8.487e-05,2]
[423132149,1779875444000,-24.62171029,8.487e-05,2]
[423132150,1779875444000,-475.37828971,8.487e-05,2]
[423132146,1779875444000,-175.15434743,8.487e-05,2]
[423132142,1779875444000,-500.0,8.487e-05,2]
[423132144,1779875444000,-283.6049049,8.487e-05,2]
[423132157,1779875444000,-232.10570334,8.487e-05,2]
[423132147,1779875444000,-500.0,8.487e-05,2]
[423132143,1779875444000,-216.3950951,8.487e-05,2]
[423132130,1779875444000,-597.12460835,8.487e-05,2]
[423132136,1779875444000,-500.0,8.487e-05,2]
[423132135,1779875444000,-500.0,8.487e-05,2]
[423132138,1779875444000,-500.0,8.487e-05,2]
[423132134,1779875444000,-2723.80239165,8.487e-05,2]
[423132140,1779875444000,-500.0,8.487e-05,2]
[423132141,1779875444000,-500.0,8.487e-05,2]
[423132148,1779875444000,-500.0,8.487e-05,2]
[423132145,1779875444000,-324.84565257,8.487e-05,2]
[423132139,1779875444000,-500.0,8.487e-05,2]
[423132186,1779875447000,-500.0,8.661e-05,2]
[423132190,1779875447000,-500.0,8.661e-05,2]
[423132187,1779875447000,-500.0,8.661e-05,2]
[423132194,1779875447000,-500.0,8.76e-05,2]
[423132184,1779875447000,-600.0,8.655e-05,2]
[423132183,1779875447000,-152.0,8.514e-05,2]
[423132193,1779875447000,-500.0,8.76e-05,2]
[423132185,1779875447000,-500.0,8.661e-05,2]
[423132188,1779875447000,-500.0,8.661e-05,2]
[423132199,1779875447000,-500.0,8.76e-05,2]
[423132192,1779875447000,-500.0,8.661e-05,2]
[423132189,1779875447000,-500.0,8.661e-05,2]
[423132196,1779875447000,-500.0,8.76e-05,2]
[423132195,1779875447000,-568.97,8.76e-05,2]
[423132198,1779875447000,-500.0,8.76e-05,2]
[423132202,1779875447000,-157.90755984,8.761e-05,2]
[423132197,1779875447000,-1237.85,8.76e-05,2]
[423132177,1779875447000,-508.13,8.487e-05,2]
[423132191,1779875447000,-500.0,8.661e-05,2]
[423132180,1779875447000,-500.0,8.488e-05,2]
[423132166,1779875447000,-211.35,8.487e-05,2]
[423132182,1779875447000,-500.0,8.488e-05,2]
[423132161,1779875447000,-309.52716571,8.487e-05,2]
[423132172,1779875447000,-458.12,8.487e-05,2]
[423132167,1779875447000,-500.0,8.487e-05,2]
[423132170,1779875447000,-500.0,8.487e-05,2]
[423132173,1779875447000,-647.27,8.487e-05,2]
[423132165,1779875447000,-620.28,8.487e-05,2]
[423132163,1779875447000,-500.0,8.487e-05,2]
[423132204,1779875447000,-465.47814665,8.761e-05,2]
[423132181,1779875447000,-500.0,8.488e-05,2]
[423132168,1779875447000,-316.95,8.487e-05,2]
[423132164,1779875447000,-490.60234293,8.487e-05,2]
[423132171,1779875447000,-500.0,8.487e-05,2]
[423132169,1779875447000,-500.0,8.487e-05,2]
[423132174,1779875447000,-498.62,8.487e-05,2]
[423132175,1779875447000,-500.0,8.487e-05,2]
[423132179,1779875447000,-500.0,8.488e-05,2]
[423132176,1779875447000,-500.0,8.487e-05,2]
[423132178,1779875447000,-150.10804639,8.487e-05,2]
[423132162,1779875447000,-500.0,8.487e-05,2]
[423132203,1779875447000,-44.12581791,8.761e-05,2]
[423132206,1779875447000,-500.0,8.761e-05,2]
[423132205,1779875447000,-669.01,8.761e-05,2]
[423132225,1779875447000,-500.0,8.935e-05,2]
[423132229,1779875447000,-568.97,9.034e-05,2]
[423132220,1779875447000,-500.0,8.935e-05,2]
[423132233,1779875447000,-500.0,9.034e-05,2]
[423132243,1779875447000,-500.0,9.209e-05,2]
[423132241,1779875447000,-508.13,9.035e-05,2]
[423132238,1779875447000,-647.27,9.035e-05,2]
[423132234,1779875447000,-669.01,9.035e-05,2]
[423132240,1779875447000,-500.0,9.035e-05,2]
[423132236,1779875447000,-500.0,9.035e-05,2]
[423132242,1779875447000,-372.79378238,9.189e-05,2]
[423132235,1779875447000,-500.0,9.035e-05,2]
[423132244,1779875447000,-500.0,9.209e-05,2]
[423132237,1779875447000,-500.0,9.035e-05,2]
[423132239,1779875447000,-500.0,9.035e-05,2]
[423132245,1779875447000,-628.47,9.209e-05,2]
[423132247,1779875447000,-500.0,9.209e-05,2]
[423132200,1779875447000,-244.40996925,8.761e-05,2]
[423132246,1779875447000,-500.0,9.209e-05,2]
[423132226,1779875447000,-152.0,8.976e-05,2]
[423132224,1779875447000,-500.0,8.935e-05,2]
[423132248,1779875447000,-382.84450996,9.209e-05,2]
[423132228,1779875447000,-500.0,9.034e-05,2]
[423132214,1779875447000,-500.0,8.762e-05,2]
[423132211,1779875447000,-500.0,8.761e-05,2]
[423132209,1779875447000,-647.27,8.761e-05,2]
[423132215,1779875447000,-546.49,8.762e-05,2]
[423132222,1779875447000,-500.0,8.935e-05,2]
[423132201,1779875447000,-255.59003075,8.761e-05,2]
[423132210,1779875447000,-500.0,8.761e-05,2]
[423132218,1779875447000,-500.0,8.935e-05,2]
[423132207,1779875447000,-500.0,8.761e-05,2]
[423132208,1779875447000,-500.0,8.761e-05,2]
[423132216,1779875447000,-500.0,8.762e-05,2]
[423132213,1779875447000,-508.13,8.761e-05,2]
[423132219,1779875447000,-500.0,8.935e-05,2]
[423132221,1779875447000,-500.0,8.935e-05,2]
[423132230,1779875447000,-500.0,9.034e-05,2]
[423132232,1779875447000,-500.0,9.034e-05,2]
[423132231,1779875447000,-1237.85,9.034e-05,2]
[423132223,1779875447000,-500.0,8.935e-05,2]
[423132227,1779875447000,-500.0,9.034e-05,2]
[423132217,1779875447000,-160.0,8.925e-05,2]
[423133180,1779876365000,4343.0,0.00019178,120]
[423133230,1779876632000,-119.36904367,7.434e-05,2]
[423133226,1779876632000,-4821.69605822,7.36e-05,2]
[423133228,1779876632000,-178.30394178,7.36e-05,2]
[423133329,1779876639000,-983.59412008,7.434e-05,2]
[423133331,1779876639000,-1658.44732523,7.434e-05,2]
[423133324,1779876639000,-1193.25754588,7.434e-05,2]
[423133598,1779876641000,-297.88906095,7.547e-05,2]
[423133597,1779876641000,-378.0,7.508e-05,2]
[423133595,1779876641000,-1045.33196514,7.434e-05,2]
[423133625,1779876644000,-500.0,8.386e-05,2]
[423133626,1779876644000,-110.24022725,8.485e-05,2]
[423133624,1779876644000,-4.26345894,7.547e-05,2]
[423133654,1779876647000,-500.0,8.619e-05,2]
[423133670,1779876647000,-500.0,8.62e-05,2]
[423133669,1779876647000,-500.0,8.62e-05,2]
[423133668,1779876647000,-566.36,8.62e-05,2]
[423133666,1779876647000,-500.0,8.62e-05,2]
[423133667,1779876647000,-500.0,8.62e-05,2]
[423133664,1779876647000,-500.0,8.619e-05,2]
[423133665,1779876647000,-500.0,8.619e-05,2]
[423133663,1779876647000,-500.0,8.619e-05,2]
[423133662,1779876647000,-500.0,8.619e-05,2]
[423133660,1779876647000,-500.0,8.619e-05,2]
[423133661,1779876647000,-500.0,8.619e-05,2]
[423133659,1779876647000,-500.0,8.619e-05,2]
[423133658,1779876647000,-451.32913644,8.619e-05,2]
[423133656,1779876647000,-1083.12,8.619e-05,2]
[423133655,1779876647000,-500.0,8.619e-05,2]
[423133671,1779876647000,-500.0,8.62e-05,2]
[423133652,1779876647000,-500.0,8.619e-05,2]
[423133648,1779876647000,-152.0,8.557e-05,2]
[423133649,1779876647000,-500.0,8.619e-05,2]
[423133650,1779876647000,-500.0,8.619e-05,2]
[423133645,1779876647000,-177.31,8.485e-05,2]
[423133646,1779876647000,-500.0,8.485e-05,2]
[423133643,1779876647000,-475.13977275,8.485e-05,2]
[423133647,1779876647000,-238.64031516,8.485e-05,2]
[423133644,1779876647000,-500.0,8.485e-05,2]
[423133657,1779876647000,-48.67086356,8.619e-05,2]
[423133672,1779876647000,-845.9891089,8.622e-05,2]
[423133690,1779876647000,-500.0,8.893e-05,2]
[423133674,1779876647000,-500.0,8.66e-05,2]
[423133673,1779876647000,-1041.0499305,8.622e-05,2]
[423133701,1779876647000,-300.0,8.934e-05,2]
[423133702,1779876647000,-300.0,8.934e-05,2]
[423133698,1779876647000,-300.0,8.934e-05,2]
[423133700,1779876647000,-300.0,8.934e-05,2]
[423133699,1779876647000,-300.0,8.934e-05,2]
[423133696,1779876647000,-257.68,8.894e-05,2]
[423133694,1779876647000,-348.12,8.894e-05,2]
[423133695,1779876647000,-500.0,8.894e-05,2]
[423133689,1779876647000,-500.0,8.893e-05,2]
[423133688,1779876647000,-500.0,8.893e-05,2]
[423133693,1779876647000,-566.36,8.894e-05,2]
[423133685,1779876647000,-161.52395358,8.893e-05,2]
[423133697,1779876647000,-300.0,8.934e-05,2]
[423133686,1779876647000,-500.0,8.893e-05,2]
[423133692,1779876647000,-334.81,8.894e-05,2]
[423133675,1779876647000,-585.38,8.759e-05,2]
[423133676,1779876647000,-500.0,8.759e-05,2]
[423133678,1779876647000,-500.0,8.893e-05,2]
[423133679,1779876647000,-500.0,8.893e-05,2]
[423133680,1779876647000,-500.0,8.893e-05,2]
[423133677,1779876647000,-500.0,8.759e-05,2]
[423133682,1779876647000,-1083.12,8.893e-05,2]
[423133683,1779876647000,-249.03585224,8.893e-05,2]
[423133684,1779876647000,-500.0,8.893e-05,2]
[423133687,1779876647000,-500.0,8.893e-05,2]
[423133691,1779876647000,-500.0,8.894e-05,2]
[423133681,1779876647000,-500.0,8.893e-05,2]
[423133717,1779876648000,-500.0,9.167e-05,2]
[423133715,1779876648000,-500.0,9.033e-05,2]
[423133714,1779876648000,-585.38,9.033e-05,2]
[423133713,1779876648000,-160.0,8.941e-05,2]
[423133712,1779876648000,-500.0,8.934e-05,2]
[423133711,1779876648000,-300.0,8.934e-05,2]
[423133707,1779876648000,-300.0,8.934e-05,2]
[423133710,1779876648000,-300.0,8.934e-05,2]
[423133709,1779876648000,-300.0,8.934e-05,2]
[423133706,1779876648000,-300.0,8.934e-05,2]
[423133705,1779876648000,-300.0,8.934e-05,2]
[423133704,1779876648000,-300.0,8.934e-05,2]
[423133708,1779876648000,-300.0,8.934e-05,2]
[423133716,1779876648000,-500.0,9.033e-05,2]
[423133703,1779876648000,-300.0,8.934e-05,2]
[423133720,1779876648000,-1083.12,9.167e-05,2]
[423133719,1779876648000,-500.0,9.167e-05,2]
[423133731,1779876648000,-488.46,9.307e-05,2]
[423133730,1779876648000,-585.38,9.307e-05,2]
[423133728,1779876648000,-500.0,9.168e-05,2]
[423133729,1779876648000,-500.0,9.208e-05,2]
[423133727,1779876648000,-566.36,9.168e-05,2]
[423133732,1779876648000,-866.73360522,9.34e-05,2]
[423133724,1779876648000,-500.0,9.167e-05,2]
[423133725,1779876648000,-500.0,9.167e-05,2]
[423133723,1779876648000,-500.0,9.167e-05,2]
[423133721,1779876648000,-500.0,9.167e-05,2]
[423133722,1779876648000,-500.0,9.167e-05,2]
[423133726,1779876648000,-500.0,9.168e-05,2]
[423133718,1779876648000,-500.0,9.167e-05,2]
[423133735,1779876795000,184.3373153,0.00019,120]
[423133882,1779877832000,-500.0,8.617e-05,2]
[423133873,1779877832000,-500.0,8.527e-05,2]
[423133878,1779877832000,-94.8048071,8.527e-05,2]
[423133877,1779877832000,-212.4614862,8.527e-05,2]
[423133876,1779877832000,-500.0,8.527e-05,2]
[423133879,1779877832000,-500.0,8.527e-05,2]
[423133880,1779877832000,-152.0,8.545e-05,2]
[423133875,1779877832000,-500.0,8.527e-05,2]
[423133872,1779877832000,-500.0,8.527e-05,2]
[423133885,1779877832000,-508.8,8.617e-05,2]
[423133874,1779877832000,-500.0,8.527e-05,2]
[423133884,1779877832000,-500.0,8.617e-05,2]
[423133892,1779877832000,-500.0,8.617e-05,2]
[423133886,1779877832000,-500.0,8.617e-05,2]
[423133883,1779877832000,-500.0,8.617e-05,2]
[423133889,1779877832000,-500.0,8.617e-05,2]
[423133887,1779877832000,-500.0,8.617e-05,2]
[423133893,1779877832000,-278.1,8.617e-05,2]
[423133870,1779877832000,-500.0,8.527e-05,2]
[423133894,1779877832000,-500.0,8.617e-05,2]
[423133888,1779877832000,-224.52821222,8.617e-05,2]
[423133899,1779877832000,-500.0,8.617e-05,2]
[423133890,1779877832000,-250.461,8.617e-05,2]
[423133896,1779877832000,-500.0,8.617e-05,2]
[423133895,1779877832000,-500.0,8.617e-05,2]
[423133881,1779877832000,-152.0,8.554e-05,2]
[423133871,1779877832000,-500.0,8.527e-05,2]
[423133862,1779877832000,-500.0,8.516e-05,2]
[423133868,1779877832000,-500.0,8.527e-05,2]
[423133832,1779877832000,-1933.23575618,8.13e-05,2]
[423133834,1779877832000,-3066.76424382,8.13e-05,2]
[423133836,1779877832000,-308.88946949,8.212e-05,2]
[423133838,1779877832000,-500.0,8.253e-05,2]
[423133840,1779877832000,-500.0,8.253e-05,2]
[423133844,1779877832000,-500.0,8.253e-05,2]
[423133852,1779877832000,-500.0,8.253e-05,2]
[423133853,1779877832000,-500.0,8.253e-05,2]
[423133846,1779877832000,-500.0,8.253e-05,2]
[423133850,1779877832000,-500.0,8.253e-05,2]
[423133854,1779877832000,-500.0,8.253e-05,2]
[423133842,1779877832000,-500.0,8.253e-05,2]
[423133848,1779877832000,-500.0,8.253e-05,2]
[423133855,1779877832000,-500.0,8.253e-05,2]
[423133857,1779877832000,-500.0,8.253e-05,2]
[423133856,1779877832000,-500.0,8.253e-05,2]
[423133858,1779877832000,-31378.8358798,8.254e-05,8]
[423133859,1779877832000,-161.83500948,8.296e-05,2]
[423133860,1779877832000,-500.0,8.516e-05,2]
[423133861,1779877832000,-372.69919645,8.516e-05,2]
[423133866,1779877832000,-6076.41861426,8.518e-05,2]
[423133864,1779877832000,-500.0,8.516e-05,2]
[423133863,1779877832000,-500.0,8.516e-05,2]
[423133865,1779877832000,-500.0,8.516e-05,2]
[423133867,1779877832000,-152.0,8.526e-05,2]
[423133869,1779877832000,-500.0,8.527e-05,2]
[423133900,1779877832000,-500.0,8.617e-05,2]
[423133891,1779877832000,-315.20887041,8.617e-05,2]
[423133898,1779877832000,-500.0,8.617e-05,2]
[423133931,1779877832000,-500.0,8.618e-05,2]
[423133928,1779877832000,-500.0,8.617e-05,2]
[423133933,1779877832000,-500.0,8.618e-05,2]
[423133934,1779877832000,-500.0,8.618e-05,2]
[423133936,1779877832000,-500.0,8.618e-05,2]
[423133935,1779877832000,-496.50385258,8.618e-05,2]
[423133939,1779877832000,-500.0,8.618e-05,2]
[423133940,1779877832000,-500.0,8.618e-05,2]
[423133938,1779877832000,-500.0,8.618e-05,2]
[423133937,1779877832000,-500.0,8.618e-05,2]
[423133942,1779877832000,-326.53117141,8.618e-05,2]
[423133941,1779877832000,-173.46882859,8.618e-05,2]
[423133943,1779877832000,-500.0,8.618e-05,2]
[423133947,1779877832000,-170.64116875,8.686e-05,2]
[423133946,1779877832000,-26.49675678,8.618e-05,2]
[423133945,1779877832000,-458.67689299,8.618e-05,2]
[423133944,1779877832000,-14.82635023,8.618e-05,2]
[423133949,1779877832000,-16.37642988,8.789e-05,2]
[423133948,1779877832000,-170.64116875,8.754e-05,2]
[423133950,1779877832000,-283.62357012,8.789e-05,2]
[423133953,1779877832000,-300.0,8.789e-05,2]
[423133952,1779877832000,-300.0,8.789e-05,2]
[423133955,1779877832000,-300.0,8.789e-05,2]
[423133954,1779877832000,-300.0,8.789e-05,2]
[423133897,1779877832000,-500.0,8.617e-05,2]
[423133929,1779877832000,-500.0,8.617e-05,2]
[423133932,1779877832000,-500.0,8.618e-05,2]
[423133951,1779877832000,-300.0,8.789e-05,2]
[423133925,1779877832000,-500.0,8.617e-05,2]
[423133901,1779877832000,-500.0,8.617e-05,2]
[423133903,1779877832000,-500.46975875,8.617e-05,2]
[423133904,1779877832000,-321.68209061,8.617e-05,2]
[423133905,1779877832000,-170.64116876,8.617e-05,2]
[423133902,1779877832000,-500.0,8.617e-05,2]
[423133906,1779877832000,-500.0,8.617e-05,2]
[423133907,1779877832000,-500.0,8.617e-05,2]
[423133908,1779877832000,-696.79,8.617e-05,2]
[423133910,1779877832000,-222.78539373,8.617e-05,2]
[423133930,1779877832000,-500.0,8.618e-05,2]
[423133912,1779877832000,-500.0,8.617e-05,2]
[423133913,1779877832000,-500.0,8.617e-05,2]
[423133911,1779877832000,-500.0,8.617e-05,2]
[423133909,1779877832000,-500.0,8.617e-05,2]
[423133918,1779877832000,-500.0,8.617e-05,2]
[423133924,1779877832000,-1026.7493,8.617e-05,2]
[423133927,1779877832000,-1736.26,8.617e-05,2]
[423133915,1779877832000,-500.0,8.617e-05,2]
[423133926,1779877832000,-500.0,8.617e-05,2]
[423133923,1779877832000,-500.0,8.617e-05,2]
[423133922,1779877832000,-500.0,8.617e-05,2]
[423133921,1779877832000,-222.03409966,8.617e-05,2]
[423133917,1779877832000,-500.0,8.617e-05,2]
[423133919,1779877832000,-500.0,8.617e-05,2]
[423133914,1779877832000,-503.08956026,8.617e-05,2]
[423133916,1779877832000,-500.0,8.617e-05,2]
[423133920,1779877832000,-503.73339872,8.617e-05,2]
[423133956,1779877833000,-300.0,8.789e-05,2]
[423133961,1779877833000,-300.0,8.789e-05,2]
[423133959,1779877833000,-300.0,8.789e-05,2]
[423133957,1779877833000,-300.0,8.789e-05,2]
[423133958,1779877833000,-300.0,8.789e-05,2]
[423133960,1779877833000,-300.0,8.789e-05,2]
[423133965,1779877833000,-600.0,8.79e-05,2]
[423133963,1779877833000,-300.0,8.789e-05,2]
[423133964,1779877833000,-300.0,8.789e-05,2]
[423133968,1779877833000,-500.0,8.801e-05,2]
[423133966,1779877833000,-500.0,8.801e-05,2]
[423133969,1779877833000,-538.88858038,8.801e-05,2]
[423133967,1779877833000,-500.0,8.801e-05,2]
[423133971,1779877833000,-500.0,8.801e-05,2]
[423133970,1779877833000,-500.0,8.801e-05,2]
[423133972,1779877833000,-175.59632188,8.801e-05,2]
[423133962,1779877833000,-300.0,8.789e-05,2]
[423134084,1779877838000,-500.0,8.891e-05,2]
[423134091,1779877838000,-500.0,8.891e-05,2]
[423134088,1779877838000,-500.0,8.891e-05,2]
[423134086,1779877838000,-500.0,8.891e-05,2]
[423134090,1779877838000,-500.0,8.891e-05,2]
[423134093,1779877838000,-696.79,8.891e-05,2]
[423134097,1779877838000,-500.0,8.891e-05,2]
[423134092,1779877838000,-170.64116875,8.891e-05,2]
[423134082,1779877838000,-500.0,8.891e-05,2]
[423134094,1779877838000,-500.0,8.891e-05,2]
[423134095,1779877838000,-500.0,8.891e-05,2]
[423134098,1779877838000,-500.74979388,8.891e-05,2]
[423134096,1779877838000,-500.0,8.891e-05,2]
[423134076,1779877838000,-500.0,8.891e-05,2]
[423134070,1779877838000,-500.0,8.891e-05,2]
[423134081,1779877838000,-500.0,8.891e-05,2]
[423134074,1779877838000,-500.0,8.891e-05,2]
[423134072,1779877838000,-500.0,8.891e-05,2]
[423134068,1779877838000,-500.0,8.891e-05,2]
[423134066,1779877838000,-500.0,8.891e-05,2]
[423134061,1779877838000,-500.0,8.891e-05,2]
[423134062,1779877838000,-508.8,8.891e-05,2]
[423134064,1779877838000,-500.0,8.891e-05,2]
[423134057,1779877838000,-500.0,8.891e-05,2]
[423134055,1779877838000,-170.64116875,8.823e-05,2]